lending/lending_fUSD_20250706
["ID","MTS","AMOUNT","RATE_DAILY","PERIOD"]
[369909616,1751773854555,-165.937871,0.00019151,2]
[369909618,1751773854564,-165.937871,0.00019151,2]
[369909620,1751773854574,-224.572426,0.00019151,2]
[369909622,1751773854583,-224.572426,0.00019151,2]
[369909624,1751773854593,-151.0,0.00019151,2]
[369909626,1751773854603,-151.0,0.00019151,2]
[369909628,1751773854613,-448.246695,0.00019151,2]
[369909630,1751773854623,-151.0,0.00019151,2]
[369909632,1751773854633,-151.0,0.00019151,2]
[369909634,1751773854643,-2993.807852,0.00019151,2]
[369909636,1751773854652,-2993.807852,0.00019151,2]
[369909638,1751773854661,-151.0,0.00019151,2]
[369909640,1751773854672,-1090.797006,0.00019151,2]
[369909642,1751773854681,-1090.797006,0.00019151,2]
[369909644,1751773854691,-365.792703,0.00019151,2]
[369909646,1751773854701,-365.792703,0.00019151,2]
[369909648,1751773854710,-237.174568,0.00019151,2]
[369909650,1751773854719,-237.174567,0.00019151,2]
[369909652,1751773854728,-151.0,0.00019151,2]
[369909654,1751773854737,-248.276769,0.00019151,2]
[369909656,1751773854747,-151.0,0.00019151,2]
[369909658,1751773854756,-151.0,0.00019151,2]
[369909660,1751773854766,-240.155919,0.00019151,2]
[369909662,1751773854776,-151.0,0.00019151,2]
[369909664,1751773854785,-151.0,0.00019151,2]
[369909666,1751773854795,-321.306437,0.00019151,2]
[369909668,1751773854804,-321.306437,0.00019151,2]
[369909670,1751773854814,-603.761966,0.00019151,2]
[369909672,1751773854823,-603.761966,0.00019151,2]
[369909674,1751773854833,-299.54537,0.00019151,2]
[369909676,1751773854842,-299.54537,0.00019151,2]
[369909678,1751773854851,-11910.6517487,0.00019152,2]
[369909680,1751773854861,-62515.95,0.0001916,2]
[369909682,1751773854870,-151.0,0.0001916,2]
[369909684,1751773854880,-94.60421437,0.0001916,2]
[369910133,1751773917659,1388.293355,0.0001916,120]
[369910161,1751775032507,-446.02,0.00013699,2]
[369910162,1751775032517,-164.66,0.00014262,2]
[369910163,1751775032527,-168.94,0.00016712,2]
[369910164,1751775032536,-187.04,0.00016805,2]
[369910165,1751775032613,-337.96,0.00016805,2]
[369910166,1751775032623,-250.51599087,0.00017083,2]
[369910167,1751775032632,-151.0,0.00017216,2]
[369910168,1751775032642,-215.95124216,0.00017773,2]
[369910953,1751775040582,-297.10784519,0.00017773,2]
[369911154,1751775043472,-736.94091265,0.00017773,2]
[369911156,1751775043482,-200.0,0.00017777,2]
[369911158,1751775043491,-507.80031199,0.000178,2]
[369911161,1751775043502,-750.49223001,0.000178,2]
[369911180,1751775043684,-741.707458,0.000178,2]
[369911182,1751775043694,-59.11691486,0.00017823,2]
[369911184,1751775043705,-100.34308514,0.00017823,2]
[369911186,1751775043715,-250.0,0.00017823,2]
[369911188,1751775043724,-304.0,0.00017861,2]
[369911190,1751775043734,-42.72791854,0.00017861,2]
[369911444,1751775046330,-164.67208146,0.00017861,2]
[369911446,1751775046340,-151.0,0.00017861,2]
[369911448,1751775046350,-151.0,0.00017861,2]
[369911450,1751775046359,-151.0,0.00017861,2]
[369911452,1751775046370,-151.0,0.00017861,2]
[369911454,1751775046380,-151.0,0.00017861,2]
[369911456,1751775046390,-151.0,0.00017861,2]
[369911458,1751775046399,-151.0,0.00017861,2]
[369911460,1751775046408,-151.0,0.00017861,2]
[369911461,1751775046417,-151.0,0.00017861,2]
[369911463,1751775046426,-151.0,0.00017861,2]
[369911465,1751775046437,-87.64791854,0.00017861,2]
[369911472,1751775046497,-63.35208146,0.00017861,2]
[369911474,1751775046506,-151.0,0.00017861,2]
[369911476,1751775046515,-151.0,0.00017861,2]
[369911478,1751775046524,-300.0,0.00017861,2]
[369911480,1751775046534,-151.0,0.00017861,2]
[369911482,1751775046543,-182.93111853,0.00017871,2]
[369911484,1751775046554,-1304.49704009,0.00017871,2]
[369911487,1751775046566,-999.26189378,0.00017871,2]
[369912361,1751775974571,-505.0,0.00013805,2]
[369912362,1751775974593,-250.0,0.00015,2]
[369912363,1751775974613,-170.44794608,0.00016785,2]
[369912364,1751775974637,-302.2,0.00016805,2]
[369912365,1751775974658,-2163.25,0.00016824,2]
[369912366,1751775974680,-505.0,0.00016885,5]
[369912367,1751775974701,-3723.0,0.00016989,2]
[369912368,1751775974725,-170.44794606,0.00017047,2]
[369912369,1751775974748,-210.65410786,0.00017308,2]
[369912370,1751775976766,-1000.0,0.00016571,2]
[369912371,1751775976789,-89.34589214,0.00017308,2]
[369912372,1751775976811,-162.13863548,0.00017309,2]
[369912373,1751775976831,-170.44794606,0.00017309,2]
[369912374,1751775976854,-194.14900338,0.00017309,2]
[369912375,1751775976875,-625.0,0.00017319,2]
[369912376,1751775976896,-2479.00792765,0.00017319,2]
[369912377,1751775976917,-1624.15447027,0.00017319,2]
[369912378,1751775976937,-625.0,0.00017319,2]
[369912379,1751775976958,-550.0,0.00017407,2]
[369912380,1751775976980,-480.75612502,0.00017407,2]
[369912381,1751775977921,-95.0078285,0.00017407,2]
[369912382,1751775977943,-171.93084619,0.00017407,2]
[369912383,1751775977964,-288.83824297,0.00017407,2]
[369912384,1751775977985,-3996.82907376,0.00017408,2]
[369912385,1751775978011,-3447.39400858,0.00017408,2]
[369912386,1751775979495,-8000.0,0.00017408,2]
[369912387,1751775981184,-8000.0,0.00017408,2]
[369912388,1751775982629,-8000.0,0.00017408,2]
[369912389,1751775983944,-8000.0,0.00017408,2]
[369912390,1751775985264,-8000.0,0.00017408,2]
[369912391,1751776003863,-2500.0,0.00017408,2]
[369912407,1751776231759,-423.71,0.00013699,2]
[369912408,1751776231769,-150.0,0.00016696,2]
[369912409,1751776231779,-561.84481032,0.00016712,2]
[369912410,1751776231788,-150.0,0.00016743,2]
[369912411,1751776231797,-150.0,0.00017109,2]
[369912412,1751776231807,-16.69518966,0.00017121,2]
[369912413,1751776231819,-133.30481034,0.00017121,2]
[369912414,1751776231828,-523.12780384,0.00017308,2]
[369912415,1751776231840,-938.61121934,0.00017308,2]
[369912416,1751776231849,-607.18508244,0.00017309,2]
[369912417,1751776231868,-601.30776947,0.00017309,2]
[369912418,1751776231880,-1022.61428293,0.00017309,2]
[369912419,1751776231889,-162.13863548,0.00017309,2]
[369912420,1751776231899,-75.47782426,0.00017318,2]
[369912423,1751776231955,-74.52217574,0.00017318,2]
[369912424,1751776231965,-200.0,0.00017321,2]
[369912425,1751776231976,-150.0,0.00017379,2]
[369912427,1751776231989,-404.82718698,0.00017398,2]
[369912430,1751776232000,-98.34281302,0.00017398,2]
[369912432,1751776232009,-266.65718698,0.00017407,2]
[369912436,1751776232030,-798.0,0.00017407,2]
[369912439,1751776232049,-1728.8019168,0.00017407,2]
[369912441,1751776232061,-1258.62479095,0.00017407,2]
[369912444,1751776232082,-69962.14326642,0.00017407,2]
[369912447,1751776232097,-21219.19082506,0.00017407,2]
[369912449,1751776232109,-22190.03319635,0.00017407,2]
[369912925,1751776239847,-8935.79656887,0.00017407,2]
[369912927,1751776239859,-467.68152008,0.00017407,2]
[369913228,1751776242862,-9460.3479708,0.00017407,2]
[369913508,1751776245654,-144506.8736953,0.00017407,2]
[369913527,1751776245962,-8011.68945982,0.00017407,2]
[369913530,1751776245982,-2519.0000009,0.00017407,2]
[369913930,1751776657043,-321.21200477,0.000149,2]
[369913931,1751776657065,-400.0,0.00015,2]
[369913932,1751776657085,-365.61608254,0.00015,2]
[369913933,1751776657106,-321.21200477,0.00015313,2]
[369913934,1751776657127,-321.21200477,0.00015725,2]
[369913935,1751776657148,-321.21200477,0.00016138,2]
[369913936,1751776657171,-150.0,0.00016238,2]
[369913937,1751776657194,-150.0,0.00016465,2]
[369913938,1751776670277,-150.0,0.00016626,2]
[369913939,1751776670301,-150.0,0.00016797,2]
[369913940,1751776670324,-150.0,0.00016822,2]
[369913941,1751776670345,-443.56,0.00016891,2]
[369913942,1751776670371,-150.0,0.00016892,2]
[369913943,1751776670394,-610.0,0.00016908,2]
[369913944,1751776670422,-150.0,0.00016939,2]
[369913945,1751776803145,232.03843328,0.00016915,2]
[369913946,1751776978842,508.0,0.00016964,2]
[369913947,1751777131575,557.54,0.00017,2]
[369913948,1751777204793,150.0,0.00016802,2]
[369913949,1751777272505,-209.0,0.0001704,2]
[369913950,1751777272528,-150.0,0.00017074,2]
[369913954,1751777431649,-815.8505672,0.00017173,2]
[369913955,1751777431660,-237.67774696,0.00017189,2]
[369913956,1751777431670,-209.0,0.0001724,2]
[369913957,1751777431681,-2214.06231,0.0001726,2]
[369913958,1751777431692,-200.0,0.0001727,2]
[369913959,1751777431703,-302.61,0.00017287,2]
[369913960,1751777431714,-39.59814766,0.00017299,2]
[369913961,1751777431731,-1160.40185234,0.00017299,2]
[369913962,1751777431742,-300.0,0.00017299,2]
[369913963,1751777431753,-298.81405843,0.000173,2]
[369913964,1751777431784,-1499.21515664,0.000173,2]
[369913965,1751777431797,-4474.06078493,0.000173,2]
[369913966,1751777431808,-200.0,0.00017364,2]
[369913967,1751777431817,-1000.0,0.00017365,2]
[369913968,1751777431826,-250.0,0.00017381,2]
[369913969,1751777431835,-300.0,0.00017407,2]
[369913970,1751777431845,-166.0,0.00017408,2]
[369913971,1751777431854,-200.0,0.00017408,2]
[369913972,1751777431863,-209.0,0.0001743,2]
[369913973,1751777431872,-151.0,0.00017467,2]
[369913974,1751777431882,-151.0,0.00017467,2]
[369913975,1751777431891,-151.0,0.00017467,2]
[369913976,1751777431900,-151.0,0.00017467,2]
[369913977,1751777431909,-151.0,0.00017467,2]
[369913978,1751777431919,-151.0,0.00017467,2]
[369913979,1751777431928,-151.0,0.00017467,2]
[369913980,1751777431938,-151.0,0.00017467,2]
[369913981,1751777431947,-151.0,0.00017467,2]
[369913982,1751777431956,-151.0,0.00017467,2]
[369913983,1751777431966,-151.0,0.00017467,2]
[369913984,1751777431975,-151.0,0.00017467,2]
[369913985,1751777431984,-151.0,0.00017467,2]
[369913986,1751777431994,-151.0,0.00017467,2]
[369913987,1751777432003,-550.0,0.00017476,2]
[369913988,1751777432012,-19113.16289344,0.00017477,2]
[369913989,1751777432073,-1043.61710656,0.00017477,2]
[369913990,1751777432082,-614.49261855,0.00017527,2]
[369913992,1751777432092,-200.0,0.00017582,2]
[369913994,1751777432101,-463.28,0.000176,2]
[369913996,1751777432110,-1600.98,0.000176,2]
[369913998,1751777432120,-167.28,0.00017606,2]
[369914000,1751777432131,-209.0,0.0001763,2]
[369914001,1751777432140,-150.0,0.00017683,2]
[369914002,1751777432149,-200.0,0.00017758,2]
[369914003,1751777432159,-1186.22425341,0.0001776,2]
[369914004,1751777432175,-780.06007541,0.0001776,2]
[369914005,1751777432186,-247.77799118,0.0001776,2]
[369914006,1751777432195,-2000.0,0.000178,2]
[369914008,1751777432204,-300.0,0.00017817,2]
[369914009,1751777432213,-151.0,0.00017817,2]
[369914011,1751777432223,-2000.0,0.00017817,2]
[369914012,1751777432232,-207.4,0.00017817,2]
[369914013,1751777432243,-2000.0,0.00017817,2]
[369914014,1751777432253,-2000.0,0.00017817,2]
[369914015,1751777432263,-2000.0,0.00017817,2]
[369914016,1751777432272,-2000.0,0.00017817,2]
[369914017,1751777432282,-2000.0,0.00017817,2]
[369914018,1751777432291,-2000.0,0.00017817,2]
[369914019,1751777432301,-2000.0,0.00017817,2]
[369914020,1751777432310,-2000.0,0.00017817,2]
[369914021,1751777432320,-2000.0,0.00017817,2]
[369914022,1751777432328,-2000.0,0.00017817,2]
[369914023,1751777432338,-2000.0,0.00017817,2]
[369914024,1751777432347,-2000.0,0.00017817,2]
[369914025,1751777432356,-151.0,0.00017817,2]
[369914026,1751777432366,-1888.81044319,0.00017817,2]
[369914027,1751777432376,-151.0,0.00017817,2]
[369914028,1751777432385,-151.0,0.00017817,2]
[369914029,1751777432394,-151.0,0.00017817,2]
[369914030,1751777432403,-300.01206174,0.00017817,2]
[369914031,1751777432412,-209.0,0.0001783,2]
[369914032,1751777432421,-150.0,0.00017863,2]
[369914033,1751777432431,-300.0,0.00017955,2]
[369914034,1751777432440,-150.0,0.00017978,2]
[369914035,1751777432449,-1700.0,0.00018,2]
[369914036,1751777432458,-500.0,0.00018,2]
[369914037,1751777432467,-200.12399232,0.00018018,2]
[369914038,1751777432476,-150.0,0.00018019,2]
[369914039,1751777432486,-209.0,0.0001803,2]
[369914040,1751777432495,-150.0,0.0001805,2]
[369914041,1751777432504,-150.0,0.00018053,2]
[369914042,1751777432514,-150.0,0.00018093,2]
[369914043,1751777432523,-1354.0,0.000181,2]
[369914044,1751777432532,-1204.0,0.00018179,2]
[369914045,1751777432541,-1204.0,0.00018179,2]
[369914046,1751777432550,-1204.0,0.00018179,2]
[369914047,1751777432559,-912.60253348,0.00018179,2]
[369914048,1751777432569,-166.0,0.00018179,2]
[369914049,1751777432578,-150.0,0.00018196,2]
[369914050,1751777432587,-150.0,0.00018213,2]
[369914051,1751777432597,-209.0,0.0001822,2]
[369914052,1751777432606,-150.0,0.00018227,2]
[369914053,1751777432615,-150.0,0.00018238,2]
[369914054,1751777432625,-150.0,0.00018252,2]
[369914055,1751777432634,-150.0,0.00018254,2]
[369914056,1751777432643,-1246.52852907,0.0001826,2]
[369914057,1751777432989,-967.53379093,0.0001826,2]
[369914058,1751777432998,-150.0,0.00018261,2]
[369914059,1751777433007,-300.0,0.00018275,2]
[369914060,1751777433017,-150.0,0.00018276,2]
[369914061,1751777433029,-150.0,0.00018282,2]
[369914062,1751777433039,-150.0,0.00018294,2]
[369914063,1751777433048,-150.0,0.00018315,2]
[369914064,1751777433058,-181.0,0.00018362,2]
[369914065,1751777433067,-150.0,0.00018368,2]
[369914066,1751777433077,-200.0,0.00018381,2]
[369914067,1751777433086,-209.0,0.0001842,2]
[369914068,1751777433096,-181.0,0.00018421,2]
[369914069,1751777433106,-181.0,0.00018437,2]
[369914070,1751777433115,-167.53,0.00018448,2]
[369914071,1751777433125,-150.0,0.0001845,2]
[369914072,1751777433134,-181.0,0.0001846,2]
[369914073,1751777433144,-150.0,0.00018469,2]
[369914074,1751777433154,-503.0,0.000185,2]
[369914075,1751777433163,-379.0,0.000185,2]
[369914076,1751777433173,-599.24759108,0.000185,2]
[369914077,1751777433185,-428.75240892,0.000185,2]
[369914078,1751777433194,-773.0,0.000185,2]
[369914079,1751777433203,-150.0,0.00018501,2]
[369914080,1751777433213,-150.0,0.00018502,2]
[369914081,1751777433222,-150.0,0.00018514,2]
[369914082,1751777433232,-150.0,0.00018521,2]
[369914083,1751777433241,-181.0,0.00018538,2]
[369914084,1751777433251,-181.0,0.00018561,2]
[369914085,1751777433260,-463.09,0.00018571,2]
[369914086,1751777433269,-800.49,0.00018571,2]
[369914087,1751777433278,-1724.55636305,0.00018576,2]
[369914088,1751777433290,-850.68797376,0.00018576,2]
[369914089,1751777433305,-1270.75566319,0.00018576,2]
[369914090,1751777433315,-568.29419934,0.0001859,2]
[369914091,1751777433327,-758.70580066,0.0001859,2]
[369914092,1751777433336,-75.44845244,0.0001862,2]
[369914093,1751777433356,-135.55154756,0.0001862,2]
[369914094,1751777433366,-209.0,0.0001862,2]
[369914095,1751777433376,-150.0,0.00018627,2]
[369914096,1751777433385,-150.0,0.00018632,2]
[369914097,1751777433395,-150.0,0.00018638,2]
[369914098,1751777433404,-181.0,0.00018672,2]
[369914099,1751777433413,-150.0,0.0001868,2]
[369914100,1751777433422,-197.90573614,0.000187,6]
[369914101,1751777433434,-202.09426386,0.000187,6]
[369914102,1751777433443,-150.0,0.00018705,2]
[369914103,1751777433452,-150.0,0.00018747,2]
[369914104,1751777433462,-585.35505946,0.0001876,2]
[369914105,1751777437676,-239.0,0.000183,2]
[369914106,1751777437685,-13.36605952,0.0001876,2]
[369914107,1751777437787,-1615.34119102,0.0001876,2]
[369914108,1751777437797,-150.0,0.00018764,2]
[369914109,1751777437806,-195.563521,0.00018776,2]
[369914110,1751777437815,-195.563521,0.00018776,2]
[369914111,1751777437824,-150.39,0.00018778,2]
[369914112,1751777437834,-150.0,0.00018778,2]
[369914113,1751777437844,-800.0,0.000188,6]
[369914114,1751777437856,-3846.0,0.00018803,2]
[369914115,1751777437866,-150.0,0.00018805,2]
[369914116,1751777437875,-211.0,0.0001882,2]
[369914117,1751777437888,-209.0,0.0001882,2]
[369914118,1751777437899,-150.0,0.00018824,2]
[369914119,1751777437909,-30.0752875,0.0001885,2]
[369914120,1751777437922,-119.9247125,0.0001885,2]
[369914121,1751777437931,-880.0752875,0.00018865,2]
[369914122,1751777437967,-1127.92113391,0.00018865,2]
[369914123,1751777437979,-420.0,0.00018889,2]
[369914124,1751777437988,-424.17832609,0.00018896,2]
[369914125,1751777437998,-528.67863431,0.000189,2]
[369914126,1751777438055,-312.15236487,0.000189,2]
[369914312,1751777440140,-199.62920633,0.0001885,2]
[369914314,1751777440150,-618.03900082,0.000189,2]
[369914316,1751777440160,-337.09,0.000189,2]
[369914318,1751777440169,-224.72,0.000189,2]
[369914320,1751777440178,-528.03712064,0.000189,2]
[369914910,1751777446173,-199.62920616,0.00018891,2]
[369914912,1751777446182,-807.4276628,0.000189,2]
[369915450,1751777460784,402.52,0.00013699,2]
[369915452,1751777779332,-207.92256544,0.00019342,30]
[369915453,1751777846675,10000.0,0.000171,2]
[369915454,1751777868317,1552.8774651,0.000171,2]
[369915455,1751778011527,160.0,0.000135,2]
[369915464,1751778631988,-382.39,0.00013699,2]
[369915465,1751778631998,-1500.0,0.00015,2]
[369915466,1751778632008,-1400.18682553,0.00016,3]
[369915467,1751778632018,-510.0,0.00016038,2]
[369915468,1751778632027,-1921.4025349,0.000171,2]
[369915469,1751778632037,-1491.54735156,0.000178,2]
[369915470,1751778632049,-508.45264844,0.000178,2]
[369915471,1751778632058,-243.1,0.00017888,2]
[369915472,1751778632068,-515.0,0.00017964,2]
[369915473,1751778632078,-200.0,0.00017965,2]
[369915474,1751778632088,-164.17,0.00017978,2]
[369915475,1751778632098,-241.39,0.00017994,2]
[369915476,1751778632108,-1800.0,0.00018,2]
[369915477,1751778632117,-159.46,0.00018033,2]
[369915478,1751778632127,-1296.0,0.000181,2]
[369915479,1751778632137,-300.84,0.00018352,2]
[369915480,1751778632148,-326.97933983,0.00018438,2]
[369915481,1751778632159,-207.4,0.00018438,2]
[369915482,1751778632169,-5381.61587066,0.00018438,2]
[369915483,1751778632228,-633.82855848,0.00018438,2]
[369915484,1751778632239,-151.0,0.00018438,2]
[369915485,1751778632249,-151.0,0.00018438,2]
[369915486,1751778632259,-151.0,0.00018438,2]
[369915487,1751778632268,-151.0,0.00018438,2]
[369915488,1751778632277,-151.0,0.00018438,2]
[369915489,1751778632286,-151.0,0.00018438,2]
[369915490,1751778632297,-151.0,0.00018438,2]
[369915491,1751778632307,-151.0,0.00018438,2]
[369915492,1751778632318,-151.0,0.00018438,2]
[369915493,1751778632328,-140.76144152,0.00018438,2]
[369915495,1751778632340,-10.23855848,0.00018438,2]
[369915497,1751778632349,-151.0,0.00018438,2]
[369915499,1751778632359,-151.0,0.00018438,2]
[369915500,1751778632369,-151.0,0.00018438,2]
[369915501,1751778632378,-111.1871736,0.00018438,2]
[369915504,1751778632487,-0.95151167,0.00018438,2]
[369915505,1751778632499,-38.86131473,0.00018438,2]
[369915506,1751778632508,-1457.78401943,0.00018449,2]
[369915507,1751778632519,-634.45948434,0.00018449,2]
[369915508,1751778632531,-673.93286093,0.00018449,2]
[369915509,1751778632544,-585.9506353,0.00018449,2]
[369915510,1751778632554,-653.059,0.00018449,2]
[369915511,1751778632563,-2019.595,0.00018449,2]
[369915512,1751778632573,-808.0,0.00018449,2]
[369915513,1751778632587,-1043.63895355,0.00018449,2]
[369915514,1751778632665,-245.48404645,0.00018449,2]
[369915515,1751778632675,-562.923,0.00018449,2]
[369915516,1751778632684,-598.871,0.00018449,2]
[369915517,1751778632693,-966.07,0.00018449,2]
[369915518,1751778632702,-60.95222546,0.00018449,2]
[369915520,1751778638090,-1103.04777454,0.00018449,2]
[369915521,1751778638103,-887.0,0.00018449,2]
[369915522,1751778638112,-1338.031,0.00018449,2]
[369915523,1751778638122,-4110.0,0.00018449,2]
[369915524,1751778638132,-866.784,0.00018449,2]
[369915525,1751778638141,-7156.0,0.00018449,2]
[369915526,1751778638152,-757.526,0.00018449,2]
[369915527,1751778638161,-167.84,0.00018502,2]
[369915528,1751778638171,-230.485578,0.00018521,2]
[369915529,1751778638180,-1270.0,0.0001859,2]
[369915530,1751778638189,-815.85056721,0.00018591,2]
[369915531,1751778638199,-20.70202792,0.000186,6]
[369915532,1751778638211,-279.29797208,0.000186,6]
[369915533,1751778638220,-16.7397596,0.000187,6]
[369915534,1751778638232,-683.2602404,0.000187,6]
[369915547,1751778638473,-312.48,0.00018758,2]
[369915550,1751778638498,-1000.0,0.000188,6]
[369915552,1751778638507,-2604.32,0.00018889,2]
[369915554,1751778638518,-186.846,0.00018889,2]
[369915556,1751778638528,-561.8,0.000189,2]
[369915558,1751778638537,-238.91,0.000189,2]
[369915560,1751778638546,-238.91,0.000189,2]
[369915562,1751778638555,-151.0,0.000189,2]
[369915564,1751778638565,-414.09824763,0.000189,2]
[369915566,1751778638574,-1400.0,0.000189,6]
[369915568,1751778638587,-515.75438416,0.000189,2]
[369915570,1751778638600,-487.29628257,0.000189,2]
[369915574,1751778638630,-1744.12984004,0.000189,2]
[369915576,1751778638639,-945.77552,0.000189,2]
[369915578,1751778638650,-1094.82275957,0.00018912,2]
[369915582,1751778638688,-541.73371311,0.00018912,2]
[369915584,1751778638698,-150.0,0.00018938,2]
[369915586,1751778638708,-150.0,0.00018938,2]
[369915588,1751778638717,-150.0,0.00018938,2]
[369915590,1751778638727,-759.0,0.00018938,2]
[369915592,1751778638736,-464.0,0.00018938,2]
[369915594,1751778638746,-199.45715085,0.0001895,2]
[369915668,1751778640116,-300.54284915,0.0001895,2]
[369915669,1751778640125,-500.0,0.0001895,2]
[369915670,1751778640135,-250.0,0.0001895,2]
[369915671,1751778640147,-150.0,0.0001895,2]
[369915672,1751778640156,-1092.0,0.0001895,2]
[369915673,1751778640167,-150.65307942,0.0001895,2]
[369915674,1751778640177,-527.0,0.0001895,2]
[369915675,1751778640187,-150.0,0.0001895,2]
[369915676,1751778640197,-500.0,0.00018965,2]
[369915677,1751778640207,-7321.9591,0.00018965,2]
[369915678,1751778640216,-2129.5937026,0.00018965,2]
[369915679,1751778640269,-49.99743456,0.0001895,2]
[369915680,1751778640295,-226.06806386,0.0001895,2]
[369915681,1751778640305,-151.0,0.0001895,2]
[369915682,1751778640316,-3127.2367974,0.00018965,2]
[369915683,1751778640326,-60.48563753,0.00018965,2]
[369915689,1751778640827,-669.42751932,0.00018965,2]
[369915690,1751778640844,-270.08684315,0.00018965,2]
[369915691,1751778640855,-162.13863548,0.00018978,2]
[369915692,1751778640865,-364.0,0.00018993,2]
[369915693,1751778640875,-2495.38949275,0.00018998,2]
[369915694,1751778640887,-925.51228013,0.00018998,2]
[369915696,1751778643124,-184.04366561,0.00018965,2]
[369915697,1751778643134,-1091.32687639,0.00018998,2]
[369915698,1751778643187,-487.77135073,0.00018998,2]
[369915699,1751778643196,-188.48000387,0.00018999,2]
[369915700,1751778643291,-1127.08511701,0.00018999,2]
[369915701,1751778643300,-1807.19677926,0.00018999,2]
[369915702,1751778643310,-179.66628562,0.00018999,2]
[369915703,1751778643320,-1458.87,0.00019,2]
[369915704,1751778643331,-1458.87,0.00019,2]
[369915705,1751778643342,-1458.87,0.00019,2]
[369915706,1751778643352,-1458.87,0.00019,2]
[369915707,1751778643362,-337.09,0.00019,2]
[369915708,1751778643371,-337.09,0.00019,2]
[369915709,1751778643381,-337.09,0.00019,2]
[369915710,1751778643390,-337.09,0.00019,2]
[369915711,1751778643400,-224.72,0.00019,2]
[369915713,1751778643410,-224.72,0.00019,2]
[369915714,1751778643419,-224.72,0.00019,2]
[369915715,1751778643428,-224.72,0.00019,2]
[369915716,1751778643438,-4438.07223776,0.00019,2]
[369915717,1751778643450,-2725.14917778,0.00019,2]
[369915718,1751778643485,-3737.90518896,0.00019,2]
[369915722,1751778645938,-1074.09673799,0.0001895,2]
[369915723,1751778645948,-1074.09673799,0.0001895,2]
[369915724,1751778645957,-6633.65771222,0.00019,2]
[369915725,1751778645968,-1963.5661444,0.00019,2]
[369915726,1751778646307,-2338.11379006,0.00019,2]
[369915727,1751778646344,-459.58986104,0.00018965,2]
[369915730,1751779086632,-300.0,0.00013699,2]
[369915731,1751779086656,-448.0,0.000137,2]
[369915732,1751779153788,-300.0,0.00013599,2]
[369915733,1751779153809,-7700.0,0.000136,2]
[369915734,1751779154885,-5638.0,0.000136,2]
[369915735,1751779154906,-247.0,0.00013799,2]
[369915736,1751779154926,-2115.0,0.000138,3]
[369915737,1751779155741,-3394.0,0.000138,3]
[369915738,1751779155762,-151.0,0.00013992,2]
[369915739,1751779155782,-151.0,0.00013992,2]
[369915740,1751779155803,-151.0,0.00013992,2]
[369915741,1751779155823,-151.0,0.00013992,2]
[369915742,1751779155844,-151.0,0.00013992,2]
[369915743,1751779155865,-151.0,0.00013992,2]
[369915744,1751779155887,-151.0,0.00013992,2]
[369915745,1751779155911,-151.0,0.00013992,2]
[369915746,1751779155931,-151.0,0.00013992,2]
[369915747,1751779155952,-151.0,0.00013992,2]
[369915748,1751779155973,-151.0,0.00013992,2]
[369915749,1751779155994,-151.0,0.00013992,2]
[369915750,1751779156015,-151.0,0.00013992,2]
[369915751,1751779156034,-2643.0,0.00014,5]
[369915752,1751779156609,-2866.0,0.00014,5]
[369915755,1751779700896,2247.10915061,0.00012,30]
[369915780,1751779832181,-363.27,0.00013699,2]
[369915782,1751779832190,-203.65,0.00014,5]